Cogmind - Beta 13 @@@ ROGUE MODE // 2024.04.04 @ 04:23:53 Player: 81fm Result: Destroyed by B-36 Bruiser with Hammer Performance ------------- Evolutions (1) 500 Regions Visited (3) 600 Robots Destroyed (20) 100 Value Destroyed (514) 514 Prototype IDs (0) 0 Alien Tech Used (0) 0 Bonus (0) 0 TOTAL SCORE: 1714 Bonus ------- None Cogmind --------- Core Integrity 0/400 Matter 290/300 Energy 86/100 System Corruption 7% Temperature Cool (0) Movement Core (50) Location -9/Materials Parts ------- > --- POWER (1) -------- (None) > --- PROPULSION (2) --- (None) > --- UTILITY (4) ------ (None) > --- WEAPON (2) ------- Small Laser > --- INVENTORY (5) ---- Signal Interpreter Peak State ------------ > --- POWER ------------ Light Ion Engine > --- PROPULSION ------- Compact Wheel Compact Wheel > --- UTILITY ---------- Heat Sink > --- WEAPON ----------- Medium Laser Small Laser > --- INVENTORY -------- (None) [Rating: 6] Favorites ----------- Power Light Ion Engine Engine Light Ion Engine Propulsion Wheel Wheel Wheel Flight Unit Flight Unit Utility Heat Sink Device Heat Sink Weapon Small Laser Energy Gun Small Laser Build | -11 -10 -10 -9 ------- Run | Yrd Mat Min Mat Slots Evolved 2 | . . . 2 Power . | . . . . Propulsion . | . . . . Utility 2 | . . . 2 Weapon . | . . . . Parts Attached 13 | 5 4 1 3 Power 2 | 1 1 . . Engine 2 | 1 1 . . Core . | . . . . Reactor . | . . . . Propulsion 5 | 2 2 . 1 Treads . | . . . . Leg . | . . . . Wheel 4 | 2 2 . . Hover . | . . . . Flight 1 | . . . 1 Utility 1 | . 1 . . Device 1 | . 1 . . Storage . | . . . . Processor . | . . . . Hackware . | . . . . Protection . | . . . . Artifact . | . . . . Weapon 5 | 2 . 1 2 Energy Gun 5 | 2 . 1 2 Energy Cannon . | . . . . Ballistic Gun . | . . . . Ballistic Cannon . | . . . . Launcher . | . . . . Special Weapon . | . . . . Impact Weapon . | . . . . Slashing Weapon . | . . . . Piercing Weapon . | . . . . Special Melee Weapon . | . . . . Unidentified Prototypes . | . . . . Parts Lost 7 | . . . 7 Power 1 | . . . 1 Propulsion 2 | . . . 2 Utility 1 | . . . 1 Weapon 3 | . . . 3 Highest Loss Streak 4 | . . . 4 To Critical Strikes . | . . . . Average Slot Usage (%) 71 | . 82 85 39 Engine 10 | . 14 14 1 Wheel 22 | . 28 28 7 Device 12 | . 11 14 10 Energy Gun 24 | . 28 28 17 Naked Turns 5 | . . . 5 Heaviest Build 7 | 6 7 7 7 Greatest Support 32 | 32 32 20 20 Greatest Overweight (x) . | . . . . Average Overweight (x) . | . . . . Largest Inventory Capacity 5 | 5 5 5 5 Average Capacity 5 | 5 5 5 5 Most Carried 3 | 2 3 2 2 Average Carried . | . . 1 1 Final Capacity 5 | 5 5 5 5 Final Carried 2 | . 1 2 1 Class Distribution -------------------- 100% | Mutant Dominant Class ---------------- Mutant | -10/Materials Mutant | -10/Mines Mutant | -9/Materials Resources | -11 -10 -10 -9 ----------- Run | Yrd Mat Min Mat Matter Collected 320 | 250 20 30 20 Remotely . | . . . . Salvage Created 711 | . 290 58 363 Parts 38 | . 20 1 17 Haulers Intercepted . | . . . . Recyclers Shooed 2 | . 2 . . Parts Field Recycled . | . . . . Retrieved Matter . | . . . . Parts Self-Destructed . | . . . . Prevented . | . . . . Kills | -11 -10 -10 -9 ------- Run | Yrd Mat Min Mat Combat Hostiles Destroyed 14 | . 7 1 6 Melee 1 | . . . 1 Guns 11 | . 7 . 4 Classes Destroyed 7 | . 4 . 3 Worker 1 | . . . 1 Recycler 1 | . 1 . . Watcher 4 | . 2 . 2 Swarmer 3 | . 3 . . Grunt 9 | . 4 1 4 Brawler 1 | . . . 1 Sentry 1 | . . . 1 Best Kill Streak 6 | . 6 1 2 Combat Bots Only 3 | . 3 1 2 Max Kills in Single Turn 1 | . 1 1 1 Gunslinging . | . . . . Exploded . | . . . . Melee 1 | . . . 1 Uniques/NPCs Destroyed . | . . . . Combat | -11 -10 -10 -9 -------- Run | Yrd Mat Min Mat Hostile Shots Fired 94 | . 29 7 58 Missed 31 | . 8 4 19 Damage Taken 851 | . 191 40 620 Core 424 | . 14 . 410 Absorbed by Shields . | . . . . Core Remaining (%) 97 | 100 . 94 . Volleys Fired 72 | . 21 5 46 Largest 2 | . 2 2 2 Hottest 90 | . 90 90 90 Shots Fired 115 | . 41 10 64 Gun 115 | . 41 10 64 Cannon . | . . . . Launcher . | . . . . Special . | . . . . Kinetic . | . . . . Thermal 115 | . 41 10 64 Explosive . | . . . . Electromagnetic . | . . . . Robot Hit Streak 14 | . 7 6 14 Robot Miss Streak 3 | . 3 1 2 Penetration Max . | . . . . Secondary Targets 3 | . 2 . 1 Max Gunslinging Chain 1 | . 1 . 1 Shots Hit Robots 75 | . 24 8 43 Core Hits 36 | . 17 1 18 Critical Kills . | . . . . Critical Parts Destroyed . | . . . . Critical Strikes 3 | . 2 1 . Burn 3 | . 2 1 . Melee Attacks . | . . . . Impact . | . . . . Slashing . | . . . . Piercing . | . . . . Sneak Attacks . | . . . . Combat Hostiles . | . . . . Follow-up Attacks . | . . . . Damage Inflicted 994 | . 343 90 561 Guns 924 | . 343 90 491 Cannons . | . . . . Explosions . | . . . . Melee . | . . . . Ramming 70 | . . . 70 Kinetic . | . . . . Thermal 924 | . 343 90 491 Explosive . | . . . . Electromagnetic . | . . . . Impact . | . . . . Slashing . | . . . . Piercing . | . . . . Highest Corruption 7 | . . . 7 Average Corruption 4 | . . . 4 Corruption Purged . | . . . . Corruption Blocked . | . . . . Effects 2 | . . . 2 Energy Discharges 1 | . . . 1 Weapon Failures 1 | . . . 1 Overload Shots . | . . . . Overflow Damage . | . . . . Projectiles . | . . . . Explosions . | . . . . Melee . | . . . . Knockbacks 1 | . . . 1 Impact 1 | . . . 1 Kinetic . | . . . . Secondary . | . . . . Self-Inflicted Damage 29 | . . . 29 Shots . | . . . . Rammed 23 | . . . 23 Targets Rammed 23 | . . . 23 Kicked . | . . . . Crushed . | . . . . Highest Temperature 60 | . 60 18 22 Average Temperature 18 | . 23 14 10 Received Heat Transfer 279 | . 42 24 213 Siege Activations . | . . . . Robots Corrupted . | . . . . Combat Hostiles . | . . . . Parts Fried . | . . . . Impact Corruptions . | . . . . Robots Melted 2 | . . 1 1 Combat Hostiles 2 | . . 1 1 Parts Melted 4 | . . . 4 Heat Transferred 2606 | . 1065 322 1219 Parts Sabotaged . | . . . . Parts Stolen . | . . . . Parts Stripped . | . . . . Power Chain Reactions . | . . . . Alert | -11 -10 -10 -9 ------- Run | Yrd Mat Min Mat Peak Influence 188 | . 140 128 188 Initial 53 | . . 53 49 Average 101 | . 83 120 120 Maximum Alert Level . | . . . . Low Security (%) 100 | 100 100 100 100 Level 1 . | . . . . Level 2 . | . . . . Level 3 . | . . . . Level 4 . | . . . . Level 5 . | . . . . High Security . | . . . . Max Security . | . . . . Squads Dispatched 2 | . 2 . . Investigation 1 | . 1 . . Extermination . | . . . . Reinforcement 1 | . 1 . . Assault . | . . . . Garrison . | . . . . Intercept . | . . . . Searches Triggered . | . . . . Construction Impeded . | . . . . Haulers Reinforced . | . . . . Active Scanning Responses . | . . . . Cargo Convoy Interrupts . | . . . . Stealth | -11 -10 -10 -9 --------- Run | Yrd Mat Min Mat Distress Signals 3 | . 1 . 2 Communications Jammed . | . . . . Distress Signals . | . . . . Times Spotted 30 | . 11 5 14 Peak Tracking Total 5 | . 5 2 5 Tactical Retreats 1 | . . 1 . Traps | -11 -10 -10 -9 ------- Run | Yrd Mat Min Mat Traps Triggered . | . . . . Indirectly . | . . . . Trap Hack Attempts . | . . . . Triggered . | . . . . Disarmed . | . . . . Reprogrammed . | . . . . Reused . | . . . . Traps Extracted . | . . . . Installed . | . . . . Triggered . | . . . . Machines | -11 -10 -10 -9 ---------- Run | Yrd Mat Min Mat Machines Disabled . | . . . . Max in Single Turn . | . . . . Machines Repaired . | . . . . Machines Dismantled . | . . . . Machines Sabotaged . | . . . . Overloaded Fab Kills . | . . . . Hacking | -11 -10 -10 -9 --------- Run | Yrd Mat Min Mat Machines Accessed 9 | . 6 . 3 Terminals 9 | . 6 . 3 Fabricators . | . . . . Repair Stations . | . . . . Recycling Units . | . . . . Scanalyzers . | . . . . Garrison Access . | . . . . Total Hacks 15 | . 12 . 3 Successful 7 | . 5 . 2 Failed 8 | . 7 . 1 Catastrophic 4 | . 3 . 1 Database Lockouts . | . . . . Manual . | . . . . Terminals 15 | . 12 . 3 Fabricators . | . . . . Repair Stations . | . . . . Recycling Units . | . . . . Scanalyzers . | . . . . Garrison Access . | . . . . Terminal Hacks 7 | . 5 . 2 Branch Access Points 1 | . 1 . . Unreport Threat 1 | . 1 . . Locate Traps 3 | . 3 . . Zone Layout 2 | . . . 2 Fabricator Hacks . | . . . . Repair Station Hacks . | . . . . Recycling Unit Hacks . | . . . . Scanalyzer . | . . . . Garrison Access Hacks . | . . . . Unauthorized Hacks . | . . . . Terminals . | . . . . Fabricators . | . . . . Repair Stations . | . . . . Recycling Units . | . . . . Scanalyzers . | . . . . Garrison Access . | . . . . Data Cores Recovered . | . . . . Used . | . . . . Hacking Detections 5 | . 4 . 1 Full Trace Events 2 | . 2 . . Feedback Events . | . . . . Feedback Blocked . | . . . . Robot Schematics Acquired . | . . . . Robots Built . | . . . . Authchips . | . . . . Time . | . . . . Total Robot Build Rating . | . . . . Part Schematics Acquired . | . . . . Parts Built . | . . . . Authchips . | . . . . Time . | . . . . Total Part Build Rating . | . . . . Parts Repaired . | . . . . Time . | . . . . Parts Recycled . | . . . . Recycled Matter . | . . . . Retrieved Matter . | . . . . Retrieved Components . | . . . . Parts Scanalyzed . | . . . . Part Schematics Acquired . | . . . . Parts Damaged . | . . . . Bothacking | -11 -10 -10 -9 ------------ Run | Yrd Mat Min Mat Used RIF Installer . | . . . . Robots Hacked . | . . . . Non-combat . | . . . . Combat . | . . . . Robot Hacks Applied . | . . . . Relay Couplers Released . | . . . . Fabnet Peak Effective % . | . . . . Robots Rewired . | . . . . Allies Hacked . | . . . . Hacks Repelled . | . . . . Allies | -11 -10 -10 -9 -------- Run | Yrd Mat Min Mat Total Allies . | . . . . Largest Group . | . . . . Highest-Rated Group . | . . . . Highest-Rated Ally . | . . . . Total Orders . | . . . . Ally Attacks . | . . . . Total Damage . | . . . . Kills . | . . . . Allies Corrupted . | . . . . Allies Melted . | . . . . Intel | -11 -10 -10 -9 ------- Run | Yrd Mat Min Mat Robot Analysis Total . | . . . . Derelict Logs Recovered . | . . . . Drone Launches . | . . . . Drone Recoveries . | . . . . Exploration | -11 -10 -10 -9 ------------- Run | Yrd Mat Min Mat Turns Passed 921 | 34 366 276 245 Spaces Moved 672 | 31 237 268 136 Core 15 | 13 . . 2 Treads . | . . . . Legs . | . . . . Wheels 611 | 18 237 268 88 Hover . | . . . . Flight 46 | . . . 46 Fastest Speed 40 | 50 80 80 40 Average Speed 83 | 79 97 80 66 Slowest Speed 100 | 100 100 80 80 Overloaded Moves . | . . . . Propulsion Burnouts . | . . . . Robots Hopped . | . . . . Cave-ins Triggered . | . . . . Exploration Rate (%) 32 | 4 43 67 15 Regions Visited 3 Branch Regions 1 Pre-discovered Areas . | . . . . Known Exits Taken 1 | . 1 . . Unknown Exits Taken 2 | 1 . 1 . Scrap Searched 1 | . . 1 . Spaces Dug . | . . . . Terrain Destroyed . | . . . . Melee . | . . . . Projectile . | . . . . AOE . | . . . . Terrain Rammed . | . . . . Walls Destroyed . | . . . . Machines Disabled . | . . . . Actions | -11 -10 -10 -9 --------- Run | Yrd Mat Min Mat Total 915 | 40 330 318 227 Wait 121 | . 61 44 16 Move 669 | 30 236 267 136 Hop . | . . . . Pick Up 13 | 5 5 1 2 Fast Attach . | . . . . Attach 9 | 5 1 . 3 Detach . | . . . . Swap 4 | . 3 1 . Drop 4 | . 3 . 1 Fire 72 | . 21 5 46 Melee . | . . . . Ram 23 | . . . 23 Kick . | . . . . Crush . | . . . . Escape Stasis . | . . . . Rewire . | . . . . Trap . | . . . . Miscellaneous . | . . . . Route ------- -11/Scrapyard -10/Materials -10/Mines -9/Materials (discovered 1 exit: [*Min]) History --------- Turn | Location | Event 13 | -11/Scrapyard | Discovered new exit (range 15) 35 | -11/Scrapyard | Entered Materials 154 | -10/Materials | Identified exit to Mines 306 | -10/Materials | Build established: Mutant 401 | -10/Materials | Entered Mines 536 | -10/Mines | Met a Derelict bent on vengeance 672 | -10/Mines | Discovered new exit (range 7) 677 | -10/Mines | Entered Materials 677 | -9/Materials | Evolved 2 slots: Utility x2 808 | -9/Materials | Discovered new exit (range 16) 896 | -9/Materials | Core integrity fell below 50% 907 | -9/Materials | Core integrity fell below 20% 922 | -9/Materials | Destroyed by B-36 Bruiser with Hammer Last Messages --------------- 00889_ System corrupted by crushing effect (+3). 00891_ Slammed into B-36 Bruiser. 00892_ Slammed into G-34 Mercenary. 00895_ Destabilizing: Core damaged (-20). 00896_ Slammed into G-34 Mercenary. 00896_ W-16 Scout sends out distress signal. 00897_ Slammed into G-34 Mercenary. 00900_ Heat Sink broken. 00900_ Destabilizing: Short circuit. 00901_ Slammed into G-34 Mercenary. 00907_ Destabilizing: System corrupted (+1). 00908_ Slammed into G-34 Mercenary. 00908_ G-34 Mercenary knocked back. 00909_ Slammed into G-34 Mercenary. 00911_ Broken Heat Sink destroyed. 00911_ Slammed into G-34 Mercenary. 00913_ G-34 Mercenary destroyed. 00914_ K-01 Serf collects debris. 00915_ Acquired Sml. Laser. 00917_ K-01 Serf collects debris. Map ----- +----------------------------------------------------+ | ????????????????????????# """ #??????????????? | | ????????????????????????# """ #??????????????? | | ????????????????????????# """ #??????????????? | | ?######?????????????????# #??????????????? | | ?# #???????????????# = "#####??????????? | | ?# """#???????????????# T# #??????????? | | ?# """#???????????????# "# #??????????? | | ?# """#######?????????# # #??????????? | | ?# """# #################+### +??????????? | | ?# """# # # | | ?# + # # | | ?# """# # # | | ## """# ############# ################ | | # """## ##???????????# #??????????????# | | + """## #????????????#//!!!!#??????????????## | | # """## #????????????#//!!!!#???????????????# | | # ## #????????????########???????????????# | | ?######### #???????????????????????????????????# | | ?????????# #???????????????????????????????????# | | ????????## ##??????????????????????????????????# | | ###### [= #???#####??????????????????????????# | | !%! #???#"""#????#####?????????????????# | | #???#"R"#?####"T"#############?????# | | ## #####"%"###= # """ #?????# | | ?## ##### % %%=%%%%%gb%*% # "T" #?????# | | ??#?????#################@=k a + #?????# | | ??????????????????????#####/## # #?????# | | ??????????????????????# # ###########?????# | | ??????????????????????# """ # #########????#### | | ??????????????????????# """ # # ###### | | ??????????????????????# """ # + / | | ??????????????????????# #%= # ###### | | ??????????????????????# [ # ##########???###+ | | ??????????????????????######## # #?????# | | ?????????????????????????????# # """"" #?????# | | ???????????????############### # """"" #?????# | | ???????????????# """ """ """ #*% # """"" #?????# | | ???????????????# """ """ """ # = # """"" #?????# | | ?????????????????????""" """ # # """"" #?????# | | ????????????????????? # # """"" ####### | | ?????????????????????????????+ +???????????????? | | ?????????????????????????????# #???????????????? | | ?????????????????????????????# #???????????????? | | ????????????????????????????? "???????????????? | | ????????????????????????????? ???????????????? | | ????????????????????????????? ???????????????? | | ????????????????????????????? < "??????????????? | | ????????????????????????????? !??????????????? | | ????????????????????????????? ??????????????? | | ????????????????????????????? ""??????????????? | +----------------------------------------------------+ Best States ------------- Heat Dissipation 38 Energy Generation 10 Energy Capacity 125 Matter Stores 300 Matter Capacity 300 Sight Range 16 Terrain Scan Density 10 Evasion (%) 62 Item Schematics ----------------- None Robot Schematics ------------------ None Fabricated ------------ Nothing Alien Tech Used ----------------- None Achievements -------------- None Challenges ------------ None Game ------ Seed MobileCloakingShotgun Manual? 0 Play Time 00:12:15 Cumulative 8.6 hours Start 2024.04.04 @ 04:14:33 End 2024.04.04 @ 04:23:53 Sessions 1 Manual Loads 0 Difficulty Rogue Special Mode None Game No. 16 Rogue 11 Adventurer 0 Explorer 5 Win Type - Total 0 Types 0/0/0/0/0/0/0/0/0 Lore% 7 Gallery% 20 Achievement% 18 Wizard Run 0 Options --------- Layout 0 ASCII 0 Keyboard 0 Movement Mouse Keybinds 0 Fullscreen 1 Font 12/Smallcaps Map View 83x54 Zoom Use 0% Tactical HUD 1 Map Filters NONE Filters NONE Steam 1 RUN: 1ccc8d31-c182-4675-b8ee-871c4e8d51d2